[Event "FRA-ch Youth U16 2018"]
[Site "Agen"]
[Date "2018.04.17"]
[Round "4"]
[White "Pionnier, Camille"]
[Black "Aubert, Estee"]
[Result "0-1"]
[ECO "D20"]
[WhiteElo "1744"]
[BlackElo "1892"]
[Annotator "NA"]
[PlyCount "98"]
[EventDate "2018.??.??"]
[EventType "swiss"]
[EventCountry "FRA"]
[SourceTitle "playchess.com"]
[Source "ChessBase"]
[SourceQuality "1"]
[TimeControl "5400+30"]

1. d4 {[%emt 0:00:00]} d5 {[%emt 0:00:06]} 2. c4 {[%emt 0:00:00]} dxc4 {[%emt 0:00:03]} 3. e3 {[%emt 0:00:00]} e5 {[%emt 0:01:45]} 4. Bxc4 {[%emt 0:11:23]} exd4 {[%emt 0:00:28] LiveBook: 768 Games} 5. exd4 {[%emt 0:12:29]} Be7 {[%emt 0:03:23] D20: Queen's Gambit Accepted: 3 e3 and 3 e4} (5... Nf6 6. Nf3 Be7 7. O-O O-O 8. Nc3 Nbd7 9. Re1 Nb6 10. Bb3 c6 11. Bg5 Nbd5 12. Nxd5 Nxd5 13. Bxe7 Nxe7 14. Ne5 Nd5 15. Qf3 Be6 16. Nd3 Nc7 17. Nc5 Bxb3 18. Qxb3 b6 19. Ne4 {0-1 (57) Artemiev,V (2691)-Ivanchuk,V (2726) Huaian 2017}) 6. Qb3 {[%emt 0:04:58]} Qxd4 $146 {[%emt 0:04:27]} ({Predecessor:} 6... Be6 7. Qxb7 Bxc4 8. Qxa8 Bd5 9. Qxa7 Bxg2 10. f3 Bh4+ 11. Kd1 Nf6 12. Bf4 Nd5 13. Bg3 O-O 14. Ke2 Bxh1 15. Kf2 Bxg3+ 16. hxg3 Qg5 17. Qa3 Qh6 {0-1 (17) Peschke,M (1557)-Jablonowski,C (1784) Cuxhaven 2005}) 7. Bxf7+ {[%emt 0:03:02]} Kf8 {[%emt 0:00:04]} 8. Nc3 {[%emt 0:04:44]} Nf6 {[%emt 0:03:13]} 9. Bc4 {[%emt 0:21:39]} Ng4 {[%emt 0:09:20]} 10. Nh3 {[%emt 0:02:50]} Nc6 {[%emt 0:08:09]} 11. Ne2 {[%emt 0:05:06]} Qc5 {[%emt 0:13:37]} 12. O-O {[%emt 0:08:53]} Nge5 {[%emt 0:03:07]} 13. Be6 {[%emt 0:01:12]} Na5 {[%emt 0:03:04]} 14. Qd5 {[%emt 0:01:36]} Qxd5 {[%emt 0:00:50]} 15. Bxd5 {[%emt 0:00:02]} Bxh3 {[%emt 0:01:14]} 16. gxh3 {[%emt 0:00:03]} c6 {[%emt 0:01:22]} 17. Be6 {[%emt 0:01:06]} Bf6 {[%emt 0:06:16]} 18. f4 $11 {[%emt 0:05:07]} Nec4 {[%emt 0:06:44]} 19. b4 {[%emt 0:01:51]} Bxa1 {[%emt 0:00:54]} 20. bxa5 {[%emt 0:00:20]} Nd6 {[%emt 0:02:02]} 21. Ba3 {[%emt 0:01:28]} Ke7 {[%emt 0:00:05]} 22. Bg4 {[%emt 0:02:27]} Bf6 {[%emt 0:00:26]} 23. Re1 {[%emt 0:03:52]} Rhd8 {[%emt 0:01:17]} 24. Nd4+ {[%emt 0:02:20]} Kf7 {[%emt 0:00:23]} 25. Ne6 {[%emt 0:01:43]} Be7 {[%emt 0:15:09]} 26. Nxd8+ {[%emt 0:01:07]} Rxd8 {[%emt 0:00:02]} 27. Kg2 {[%emt 0:02:19]} Bh4 {[%emt 0:02:07]} 28. Re2 {[%emt 0:01:34]} g6 {[%emt 0:01:06]} 29. Be6+ {[%emt 0:00:33]} Kg7 {[%emt 0:00:13]} 30. Bb2+ {[%emt 0:00:28]} Bf6 {[%emt 0:00:07]} 31. Ba3 {[%emt 0:00:34]} Nb5 {[%emt 0:00:40]} 32. Bc5 {[%emt 0:00:24]} Nd4 {[%emt 0:04:17]} 33. Bxd4 {[%emt 0:00:37]} Rxd4 {[%emt 0:00:17]} 34. Bc8 {[%emt 0:00:29]} b6 {[%emt 0:00:23]} 35. axb6 {[%emt 0:00:26]} axb6 {[%emt 0:00:04]} 36. Kf3 {[%emt 0:00:35]} c5 {[%emt 0:01:19]} 37. Ba6 {[%emt 0:00:39]} Ra4 {[%emt 0:01:21]} 38. Bb5 {[%emt 0:00:25]} Rb4 {[%emt 0:00:50]} 39. a4 {[%emt 0:00:33]} c4 {[%emt 0:00:13]} 40. Rc2 {[%emt 0:00:29]} c3 {[%emt 0:00:16]} 41. Ke3 {[%emt 0:00:34]} Kf7 {[%emt 0:00:22]} 42. Bc6 {[%emt 0:00:23]} Ke6 {[%emt 0:00:17]} 43. Kf3 {[%emt 0:00:37]} Kd6 {[%emt 0:00:25]} 44. Bb5 {[%emt 0:00:27]} Kd5 {[%emt 0:00:44]} 45. Ke3 {[%emt 0:00:17]} Re4+ {[%emt 0:01:00]} 46. Kf3 {[%emt 0:00:26]} Rb4 {[%emt 0:00:42]} 47. Ke3 {[%emt 0:00:05]} Bg7 {[%emt 0:00:09]} 48. Be8 {[%emt 0:00:38]} Re4+ {[%emt 0:00:24]} 49. Kf3 {[%emt 0:00:15]} Rxe8 {[%emt 0:00:03]} 0-1

[Event "FRA-ch Youth U16 2018"]
[Site "Agen"]
[Date "2018.04.17"]
[Round "4"]
[White "Treboz, Hugo"]
[Black "Robert, Mathias"]
[Result "0-1"]
[ECO "A48"]
[WhiteElo "1610"]
[BlackElo "2171"]
[Annotator "NA"]
[PlyCount "68"]
[EventDate "2018.??.??"]
[EventType "swiss"]
[EventCountry "FRA"]
[SourceTitle "playchess.com"]
[Source "ChessBase"]
[SourceQuality "1"]
[TimeControl "5400+30"]

1. d4 {[%emt 0:00:00]} Nf6 {[%emt 0:00:05]} 2. Nf3 {[%emt 0:00:00]} g6 {[%emt 0:00:04]} 3. e3 {[%emt 0:00:01]} Bg7 {[%emt 0:00:04]} 4. Nbd2 {[%emt 0:00:14]} O-O {[%emt 0:00:08]} 5. Bd3 {[%emt 0:00:09]} d6 {[%emt 0:00:46]} 6. O-O {[%emt 0:00:31]} Nbd7 {[%emt 0:01:23]} 7. Re1 {[%emt 0:02:47]} c5 {[%emt 0:01:49]} 8. c3 {[%emt 0:01:41]} b6 {[%emt 0:05:14]} 9. e4 {[%emt 0:09:53]} Qc7 {[%emt 0:06:07]} 10. Nf1 {[%emt 0:02:51]} Bb7 {[%emt 0:12:56]} 11. Ng3 {[%emt 0:04:31]} Rfd8 {[%emt 0:10:32]} 12. h3 {[%emt 0:17:59]} a6 {[%emt 0:05:39]} 13. Be3 {[%emt 0:02:29]} b5 {[%emt 0:07:31]} 14. Rc1 {[%emt 0:02:30]} c4 {[%emt 0:01:43]} 15. Bb1 {[%emt 0:00:55]} a5 {[%emt 0:02:43]} 16. Qd2 {[%emt 0:02:34]} Rac8 {[%emt 0:21:20]} 17. Bh6 {[%emt 0:08:08]} e6 18. Bxg7 {[%emt 0:03:38]} Kxg7 {[%emt 0:01:18]} 19. Qg5 {[%emt 0:01:55]} b4 {[%emt 0:05:52]} 20. cxb4 {[%emt 0:08:48]} axb4 {[%emt 0:00:00]} 21. Qe3 {[%emt 0:00:31]} Qa5 {[%emt 0:03:35]} 22. Nd2 {[%emt 0:03:26]} Nb6 {[%emt 0:04:05]} 23. Rc2 {[%emt 0:02:14]} Rc7 {[%emt 0:02:03]} 24. Rec1 {[%emt 0:00:44]} Rdc8 {[%emt 0:00:18]} 25. Ne2 {[%emt 0:06:23]} Qb5 {[%emt 0:02:32]} 26. Qg3 {[%emt 0:04:26]} Nxe4 {[%emt 0:00:53]} 27. Nxe4 {[%emt 0:07:38]} Bxe4 {[%emt 0:00:07]} 28. Rd2 {[%emt 0:00:51]} Bxb1 {[%emt 0:00:22]} 29. Rxb1 {[%emt 0:00:07]} Qd5 {[%emt 0:01:44]} 30. Nf4 {[%emt 0:02:22]} Qf5 {[%emt 0:00:07]} 31. Rc1 {[%emt 0:00:37]} Nd5 {[%emt 0:01:16]} 32. Ne2 {[%emt 0:00:55]} Nf6 {[%emt 0:00:24]} 33. Qxd6 {[%emt 0:00:26]} Ne4 {[%emt 0:00:08]} 34. Qe5+ {[%emt 0:00:02]} Qxe5 0-1

[Event "FRA-ch Youth U16 2018"]
[Site "Agen"]
[Date "2018.04.18"]
[Round "5"]
[White "Vlachos, Anatole"]
[Black "Gao, Etienne"]
[Result "1-0"]
[ECO "A04"]
[WhiteElo "2346"]
[BlackElo "2129"]
[Annotator "NA"]
[PlyCount "129"]
[EventDate "2018.??.??"]
[EventType "swiss"]
[EventCountry "FRA"]
[SourceTitle "playchess.com"]
[Source "ChessBase"]
[SourceQuality "1"]
[TimeControl "5400+30"]

1. Nf3 {[%emt 0:00:00]} c5 {[%emt 0:00:21]} 2. g3 {[%emt 0:00:00]} Nc6 {[%emt 0:00:16]} 3. Bg2 {[%emt 0:00:00]} g6 {[%emt 0:00:09]} 4. d4 {[%emt 0:02:52]} cxd4 {[%emt 0:00:34]} 5. Nxd4 {[%emt 0:00:01]} Bg7 {[%emt 0:00:39]} 6. Nxc6 {[%emt 0:00:01]} bxc6 {[%emt 0:00:24]} 7. c4 {[%emt 0:00:01]} Qa5+ {[%emt 0:03:47] A30: Symmetrical English: Double Fianchetto and Hedgehog} 8. Nd2 {[%emt 0:00:12]} Nf6 {[%emt 0:01:48]} 9. O-O {[%emt 0:00:39]} O-O {[%emt 0:00:21]} 10. e4 {[%emt 0:03:11]} d6 {[%emt 0:02:05]} 11. e5 $146 {[%emt 0:06:39]} ({Predecessor:} 11. a3 Rb8 12. Rb1 {½-½ (12) Gavrikov,V (2532)-Rytshagov,M (2533) Tampere 1999}) 11... dxe5 {[%emt 0:01:01]} 12. Bxc6 {[%emt 0:01:18]} Rb8 {[%emt 0:01:40]} 13. Ne4 {[%emt 0:16:29]} Bh3 {[%emt 0:10:16]} 14. Nxf6+ {[%emt 0:02:38]} Bxf6 {[%emt 0:00:00]} 15. Bg2 {[%emt 0:00:31]} Bxg2 {[%emt 0:09:13]} 16. Kxg2 {[%emt 0:00:04]} Qa6 {[%emt 0:00:46]} 17. b3 {[%emt 0:09:06]} Rfd8 {[%emt 0:04:21]} 18. Qc2 {[%emt 0:01:37]} e4 {[%emt 0:00:29]} 19. Bf4 {[%emt 0:03:50]} e5 {[%emt 0:00:40]} (19... Bxa1 $11 20. Bxb8 Qb7) 20. Be3 {[%emt 0:01:24]} Rd3 {[%emt 0:01:24]} 21. c5 {[%emt 0:02:08]} Qc6 {[%emt 0:01:12]} 22. Rab1 {[%emt 0:00:45]} h5 {[%emt 0:08:52]} 23. h3 {[%emt 0:04:39]} (23. b4 $16) 23... h4 {[%emt 0:02:02]} 24. g4 {[%emt 0:00:09]} a5 {[%emt 0:06:52]} 25. a3 {[%emt 0:01:09]} Be7 {[%emt 0:04:39]} 26. b4 {[%emt 0:08:19]} Qf6 {[%emt 0:02:42]} 27. Qe2 {[%emt 0:04:12]} Rxa3 {[%emt 0:00:50]} 28. b5 {[%emt 0:01:15]} Qf3+ $1 {[%emt 0:00:30]} 29. Qxf3 {[%emt 0:00:01]} exf3+ {[%emt 0:00:06]} 30. Kg1 {[%emt 0:00:58]} Rc3 {[%emt 0:15:10]} 31. c6 {[%emt 0:01:30]} Ba3 {[%emt 0:00:04]} (31... Bd8 $142 32. Rfc1 Rxc1+ 33. Bxc1 Rc8) 32. Ba7 $18 {[%emt 0:03:34]} Re8 {[%emt 0:01:29]} 33. b6 {[%emt 0:03:37]} Rxc6 {[%emt 0:00:50]} 34. b7 {[%emt 0:00:04]} Bd6 {[%emt 0:00:31]} 35. Rfc1 {[%emt 0:00:49]} Rxc1+ {[%emt 0:00:42]} 36. Rxc1 {[%emt 0:00:01]} f6 {[%emt 0:04:21]} 37. Rc6 {[%emt 0:03:16]} Re7 {[%emt 0:00:04]} 38. Rxd6 {[%emt 0:00:14]} Rxb7 {[%emt 0:00:08]} 39. Ra6 {[%emt 0:00:01]} Kf7 {[%emt 0:03:48]} 40. Rxa5 {[%emt 0:00:07]} g5 {[%emt 0:03:07]} 41. Ra1 {[%emt 0:02:15]} Rd7 {[%emt 0:03:05]} 42. Bb6 {[%emt 0:03:17]} Kg6 {[%emt 0:01:09]} 43. Ra3 {[%emt 0:00:42]} Rd6 {[%emt 0:00:21]} 44. Ba5 {[%emt 0:03:01]} Rd1+ {[%emt 0:00:19]} 45. Kh2 {[%emt 0:00:10]} Rd5 {[%emt 0:00:08]} 46. Bb6 {[%emt 0:00:32]} Rd6 {[%emt 0:00:18]} 47. Be3 {[%emt 0:00:03]} Rc6 {[%emt 0:01:49]} 48. Ra1 {[%emt 0:00:24]} Rd6 {[%emt 0:01:04]} 49. Rb1 {[%emt 0:00:05]} Rc6 {[%emt 0:01:03]} 50. Kg1 {[%emt 0:00:08]} Rd6 {[%emt 0:01:10]} 51. Kf1 {[%emt 0:00:05]} Ra6 {[%emt 0:02:16]} 52. Ke1 {[%emt 0:00:26]} Ra2 {[%emt 0:00:50]} 53. Kd1 {[%emt 0:00:49]} Kf7 {[%emt 0:00:08]} 54. Bd2 {[%emt 0:00:39]} Kg6 {[%emt 0:00:11]} 55. Rb3 {[%emt 0:00:44]} Ra1+ {[%emt 0:01:14]} 56. Bc1 {[%emt 0:00:59]} e4 {[%emt 0:00:05]} 57. Kc2 {[%emt 0:02:33]} Ra6 {[%emt 0:00:35]} 58. Be3 {[%emt 0:01:41]} Ra1 {[%emt 0:02:22]} 59. Rb6 {[%emt 0:01:49]} Rh1 {[%emt 0:01:55]} 60. Bd4 {[%emt 0:00:08]} Rxh3 {[%emt 0:00:12]} 61. Rxf6+ {[%emt 0:00:05]} Kh7 {[%emt 0:00:13]} 62. Rf5 {[%emt 0:00:39]} Kg6 {[%emt 0:00:54]} 63. Be3 {[%emt 0:00:27]} Rh1 {[%emt 0:00:04]} 64. Rxg5+ {[%emt 0:00:49]} Kf6 {[%emt 0:00:06]} 65. Rh5 {[%emt 0:02:14]} 1-0

[Event "FRA-ch Youth U16 2018"]
[Site "Agen"]
[Date "2018.04.18"]
[Round "5"]
[White "Degraeve, Remy"]
[Black "Hingouet, Matthieu"]
[Result "1-0"]
[ECO "B12"]
[WhiteElo "2294"]
[BlackElo "2163"]
[Annotator "NA"]
[PlyCount "85"]
[EventDate "2018.??.??"]
[EventType "swiss"]
[EventCountry "FRA"]
[SourceTitle "playchess.com"]
[Source "ChessBase"]
[SourceQuality "1"]
[TimeControl "5400+30"]

1. e4 {[%emt 0:00:00]} c6 {[%emt 0:00:05]} 2. d4 {[%emt 0:00:00]} d5 {[%emt 0:00:05]} 3. e5 {[%emt 0:00:00]} c5 {[%emt 0:00:04]} 4. dxc5 {[%emt 0:00:00]} Nc6 {[%emt 0:00:04]} 5. Nf3 {[%emt 0:00:00]} Bg4 {[%emt 0:00:06]} 6. c3 {[%emt 0:00:00] B12: Caro-Kann: Advance Variation} e6 {[%emt 0:00:20]} 7. Be3 {[%emt 0:00:04]} (7. b4 a6 8. Nbd2 Nxe5 9. Qa4+ Nd7 10. Ne5 Ngf6 11. c4 a5 12. Nb3 axb4 13. Qb5 Be7 {0-1 (53) Topalov,V (2760)-Nakamura,H (2779) London 2016}) 7... Nge7 {[%emt 0:00:41]} 8. Nbd2 {[%emt 0:02:01]} Nf5 {[%emt 0:04:48]} 9. Bd4 {[%emt 0:02:47]} Be7 {[%emt 0:04:41]} 10. Bb5 {[%emt 0:04:04] LiveBook: 3 Games} O-O {[%emt 0:03:02]} 11. Bxc6 {[%emt 0:02:08]} bxc6 {[%emt 0:00:09]} 12. O-O $146 {[%emt 0:00:08]} ({Predecessor:} 12. h3 Bh5 13. Qa4 Qc7 {1-0 (77) Praneeth,S (2347)-Thejkumar,M (2479) Nagpur 2015}) 12... Qc7 {[%emt 0:05:06]} 13. h3 {[%emt 0:04:15]} Bh5 {[%emt 0:02:04]} 14. b4 {[%emt 0:07:32]} a5 {[%emt 0:11:40]} (14... Nxd4 $11 15. cxd4 a5) 15. Nb3 {[%emt 0:07:53]} axb4 {[%emt 0:12:44]} 16. cxb4 {[%emt 0:00:24]} Nh4 {[%emt 0:04:49]} 17. g4 {[%emt 0:02:28]} Nxf3+ {[%emt 0:02:09]} 18. Qxf3 {[%emt 0:00:02]} Bg6 {[%emt 0:00:02]} 19. Bc3 {[%emt 0:02:06]} f5 {[%emt 0:07:21]} 20. exf6 {[%emt 0:02:19]} Bxf6 {[%emt 0:02:18]} 21. Bxf6 {[%emt 0:01:01]} Rxf6 {[%emt 0:00:04]} 22. Qg3 {[%emt 0:01:24]} Qb7 {[%emt 0:13:14]} 23. a3 {[%emt 0:02:35]} Raf8 {[%emt 0:02:06]} 24. Nd4 {[%emt 0:00:46]} Be4 {[%emt 0:05:33]} 25. Qd6 $2 {[%emt 0:13:49]} ({Better is} 25. f3 $18 Bg6 26. g5) 25... Qf7 {[%emt 0:03:30]} 26. Nxc6 {[%emt 0:01:24]} Rf3 {[%emt 0:07:40]} 27. Qh2 {[%emt 0:01:49]} Qf6 {[%emt 0:02:22] [#]} 28. Ne5 $1 {[%emt 0:00:56]} Qh4 {[%emt 0:01:55]} 29. Nxf3 {[%emt 0:01:25]} Rxf3 $18 {[%emt 0:00:06]} 30. Qb8+ {[%emt 0:00:03]} Kf7 {[%emt 0:00:16]} 31. Qg3 {[%emt 0:00:04]} Qh6 {[%emt 0:03:18]} 32. g5 {[%emt 0:00:44]} Qg6 {[%emt 0:01:44]} 33. Qh4 {[%emt 0:01:34]} h6 {[%emt 0:01:32]} 34. c6 {[%emt 0:10:41]} hxg5 {[%emt 0:00:01]} 35. Qg4 {[%emt 0:00:39]} Qh6 {[%emt 0:01:22]} 36. c7 {[%emt 0:02:00]} Rxh3 {[%emt 0:00:18]} 37. f3 {[%emt 0:00:11]} Rh1+ {[%emt 0:00:20]} 38. Kf2 {[%emt 0:00:12]} Qh2+ {[%emt 0:01:04]} 39. Ke3 {[%emt 0:01:11]} Rxf1 {[%emt 0:00:43]} 40. Rxf1 {[%emt 0:00:08]} Bf5 {[%emt 0:00:31]} 41. Qxf5+ {[%emt 0:01:22]} exf5 {[%emt 0:00:18]} 42. c8=Q {[%emt 0:00:00]} d4+ {[%emt 0:00:32]} 43. Kd3 {[%emt 0:00:00]} 1-0

[Event "FRA-ch Youth U16 2018"]
[Site "Agen"]
[Date "2018.04.18"]
[Round "5"]
[White "Robert, Mathias"]
[Black "Lucas, Arthur"]
[Result "1-0"]
[ECO "B77"]
[WhiteElo "2171"]
[BlackElo "2117"]
[Annotator "NA"]
[PlyCount "101"]
[EventDate "2018.??.??"]
[EventType "swiss"]
[EventCountry "FRA"]
[SourceTitle "playchess.com"]
[Source "ChessBase"]
[SourceQuality "1"]
[TimeControl "5400+30"]

1. e4 {[%emt 0:00:00]} c5 {[%emt 0:00:06]} 2. Nf3 {[%emt 0:00:00]} d6 {[%emt 0:00:04]} 3. d4 {[%emt 0:00:00]} cxd4 {[%emt 0:00:04]} 4. Nxd4 {[%emt 0:00:00]} Nf6 {[%emt 0:00:07]} 5. Nc3 {[%emt 0:00:00]} g6 {[%emt 0:00:06]} 6. Be3 {[%emt 0:00:02]} Bg7 {[%emt 0:00:04]} 7. f3 {[%emt 0:00:05]} O-O {[%emt 0:00:05]} 8. Bc4 {[%emt 0:00:23]} Nc6 {[%emt 0:00:10]} 9. Qd2 {[%emt 0:00:59]} Nxd4 {[%emt 0:00:18]} 10. Bxd4 {[%emt 0:00:06]} Be6 {[%emt 0:00:05]} 11. Bb3 {[%emt 0:05:47]} Qa5 {[%emt 0:01:48]} 12. O-O-O {[%emt 0:05:08]} Bxb3 {[%emt 0:06:39] LiveBook: 21 Games} 13. cxb3 $14 {[%emt 0:03:12]} b5 {[%emt 0:07:49]} 14. Kb1 {[%emt 0:00:23]} b4 {[%emt 0:01:42]} 15. Bxf6 {[%emt 0:05:55]} exf6 {[%emt 0:05:45]} 16. Nd5 {[%emt 0:00:08]} Rfe8 {[%emt 0:04:35]} 17. Qxb4 {[%emt 0:07:35]} Qxb4 {[%emt 0:01:01]} 18. Nxb4 {[%emt 0:00:06]} f5 {[%emt 0:00:03]} 19. Rhe1 {[%emt 0:03:21]} fxe4 {[%emt 0:00:57]} 20. fxe4 {[%emt 0:00:49]} Re6 {[%emt 0:13:37]} 21. Nd5 {[%emt 0:23:22]} Rb8 {[%emt 0:04:40]} 22. Rc1 {[%emt 0:04:28]} a5 {[%emt 0:06:17]} 23. Kc2 {[%emt 0:11:45]} h5 {[%emt 0:16:14]} 24. Kd3 {[%emt 0:10:18]} Bxb2 {[%emt 0:03:19]} 25. Rc6 {[%emt 0:00:45]} f5 {[%emt 0:09:21]} 26. Re2 {[%emt 0:00:15]} fxe4+ {[%emt 0:01:00]} 27. Rxe4 {[%emt 0:00:05]} Rxe4 {[%emt 0:00:47]} 28. Kxe4 {[%emt 0:00:05]} Be5 {[%emt 0:00:25]} 29. h3 {[%emt 0:02:03]} Kg7 {[%emt 0:04:23]} 30. Ra6 {[%emt 0:02:05]} Rb5 {[%emt 0:00:24]} 31. Nc7 {[%emt 0:01:04]} Rb4+ {[%emt 0:01:37]} 32. Ke3 {[%emt 0:01:46]} Rb7 {[%emt 0:03:42]} 33. Ne8+ {[%emt 0:00:47]} Kh6 {[%emt 0:00:06]} 34. Nxd6 {[%emt 0:00:05]} Rd7 {[%emt 0:01:11]} 35. Nc4 {[%emt 0:01:07]} Bc3 {[%emt 0:00:58]} 36. Nxa5 {[%emt 0:01:52]} Rd2 {[%emt 0:00:11]} 37. Nc4 {[%emt 0:00:05]} Rxg2 {[%emt 0:00:11]} 38. Kf3 {[%emt 0:00:19]} Rg1 {[%emt 0:00:37]} 39. Ne3 {[%emt 0:01:44]} Be5 {[%emt 0:01:43]} 40. Ke4 {[%emt 0:01:02]} Bc3 {[%emt 0:00:59]} 41. Rd6 {[%emt 0:01:21]} Rh1 {[%emt 0:01:02]} 42. Rd3 {[%emt 0:00:12]} Be1 {[%emt 0:01:12]} 43. Rd1 {[%emt 0:00:59]} Rg1 {[%emt 0:00:27]} 44. Nc2 {[%emt 0:00:19]} Bf2 {[%emt 0:00:11]} 45. Rxg1 {[%emt 0:00:04]} Bxg1 {[%emt 0:00:02]} 46. a4 {[%emt 0:00:41]} Kg5 {[%emt 0:00:36]} 47. a5 {[%emt 0:00:20]} Ba7 {[%emt 0:00:40]} 48. b4 {[%emt 0:00:18]} Kh4 {[%emt 0:00:48]} 49. b5 {[%emt 0:00:04]} Kxh3 {[%emt 0:00:08]} 50. b6 {[%emt 0:00:05]} Bb8 {[%emt 0:00:06]} 51. a6 1-0

[Event "FRA-ch Youth U16 2018"]
[Site "Agen"]
[Date "2018.04.18"]
[Round "5"]
[White "Goix, Theo"]
[Black "Tomasi, Albert"]
[Result "0-1"]
[ECO "B92"]
[WhiteElo "2088"]
[BlackElo "2298"]
[Annotator "NA"]
[PlyCount "64"]
[EventDate "2018.??.??"]
[EventType "swiss"]
[EventCountry "FRA"]
[SourceTitle "playchess.com"]
[Source "ChessBase"]
[SourceQuality "1"]
[TimeControl "5400+30"]

1. e4 {[%emt 0:00:00]} c5 {[%emt 0:00:07]} 2. Nf3 {[%emt 0:00:00]} d6 {[%emt 0:00:08]} 3. d4 {[%emt 0:00:00]} cxd4 {[%emt 0:00:06]} 4. Nxd4 {[%emt 0:00:00]} Nf6 {[%emt 0:00:07]} 5. Nc3 {[%emt 0:00:00]} a6 {[%emt 0:00:06]} 6. Be2 {[%emt 0:00:00]} Nbd7 {[%emt 0:00:07]} 7. O-O {[%emt 0:00:30] LiveBook: 130 Games} g6 {[%emt 0:00:31]} 8. Bg5 {[%emt 0:01:49] B92: Sicilian Najdorf: 6 Be2} (8. Re1 Bg7 9. h3 b6 10. Nc6 Qc7 11. Nb4 Bb7 12. Nbd5 Qd8 13. Bg5 O-O 14. Qd2 Rc8 15. a4 Re8 {½-½ (67) Shanava,K (2551)-Korobov,A (2696) Nakhchivan 2014}) 8... Bg7 {[%emt 0:01:24]} 9. Kh1 {[%emt 0:00:35]} h6 $146 {[%emt 0:09:31]} ({Find the theoretical novelty and annotate with similar games:} 9... Nc5 10. Bf3 O-O 11. Nd5 e6 12. Nxf6+ Bxf6 13. Bxf6 Qxf6 14. c4 Rd8 15. Rc1 {½-½ (53) Feoktistov,A (2395)-Savon,V (2425) St Petersburg 1998}) 10. Bh4 {[%emt 0:01:00]} O-O {[%emt 0:01:34]} 11. f4 {[%emt 0:00:54]} Re8 {[%emt 0:03:03]} 12. Nb3 {[%emt 0:01:41]} b5 {[%emt 0:03:00]} 13. Bf3 {[%emt 0:02:41]} Bb7 {[%emt 0:05:36]} 14. a4 {[%emt 0:03:01]} b4 {[%emt 0:09:52]} 15. Nd5 {[%emt 0:00:42]} Nxd5 {[%emt 0:06:13]} 16. exd5 {[%emt 0:00:05]} Bxb2 {[%emt 0:00:08]} 17. Rb1 {[%emt 0:00:09]} Bf6 {[%emt 0:03:32]} 18. Bf2 {[%emt 0:00:57]} a5 {[%emt 0:05:07]} 19. Nd4 {[%emt 0:02:15]} Nc5 {[%emt 0:03:13]} 20. c3 {[%emt 0:16:39]} bxc3 {[%emt 0:06:23]} 21. Nc6 {[%emt 0:08:17]} Bxc6 {[%emt 0:29:49]} 22. dxc6 {[%emt 0:00:07]} Na6 {[%emt 0:00:35]} 23. Rb7 {[%emt 0:09:44]} Rb8 {[%emt 0:04:05]} 24. Bb6 $2 {[%emt 0:06:18] [#]} (24. f5 $11 g5 25. Qe2) 24... Qxb6 $1 {[%emt 0:00:06]} 25. Rxb6 {[%emt 0:00:12]} Rxb6 {[%emt 0:00:05]} 26. Qe2 {[%emt 0:08:51]} Nc7 $19 {[%emt 0:00:34]} 27. Qc4 {[%emt 0:02:10]} Reb8 {[%emt 0:02:23]} 28. f5 {[%emt 0:04:53]} g5 {[%emt 0:00:06]} 29. h4 {[%emt 0:01:23]} Rb4 {[%emt 0:00:19]} 30. Qd3 {[%emt 0:01:32]} Rxh4+ {[%emt 0:00:08]} 31. Kg1 {[%emt 0:00:02]} Bd4+ {[%emt 0:00:36]} 32. Rf2 {[%emt 0:00:05]} Rb2 0-1

[Event "FRA-ch Youth U16 2018"]
[Site "Agen"]
[Date "2018.04.18"]
[Round "5"]
[White "Aubert, Estee"]
[Black "Djidjeli, Sarah"]
[Result "1-0"]
[ECO "D00"]
[WhiteElo "1892"]
[BlackElo "1903"]
[Annotator "NA"]
[PlyCount "85"]
[EventDate "2018.??.??"]
[EventType "swiss"]
[EventCountry "FRA"]
[SourceTitle "playchess.com"]
[Source "ChessBase"]
[SourceQuality "1"]
[TimeControl "5400+30"]

1. d4 {[%emt 0:00:00]} d5 {[%emt 0:00:06]} 2. Bf4 {[%emt 0:00:00]} c5 {[%emt 0:00:32]} 3. e3 {[%emt 0:00:00]} Nc6 {[%emt 0:00:07]} 4. c3 {[%emt 0:00:13]} Bf5 {[%emt 0:00:56]} 5. Nd2 {[%emt 0:08:44]} e6 {[%emt 0:00:39]} 6. Ngf3 {[%emt 0:00:58]} Nf6 {[%emt 0:00:23]} 7. Be2 {[%emt 0:00:21] D00: 1 d4 d5: Unusual lines} h6 {[%emt 0:00:06]} (7... Bd6 8. dxc5 Bxc5 9. Nd4 Bg6 10. Qa4 O-O 11. Nxc6 bxc6 12. Qxc6 Rc8 13. Qa4 Re8 14. O-O e5 {0-1 (57) Le,Q (2737)-Ding,L (2777) Riadh 2017}) 8. h3 {[%emt 0:01:06]} Be7 {[%emt 0:00:24]} 9. O-O {[%emt 0:01:55]} O-O {[%emt 0:00:10] LiveBook: 3 Games} 10. Ne5 {[%emt 0:05:03]} Nxe5 {[%emt 0:06:54]} 11. Bxe5 {[%emt 0:01:49]} Nd7 {[%emt 0:01:23]} 12. Bh2 {[%emt 0:00:54]} Qb6 $146 {[%emt 0:02:43]} ({Predecessor:} 12... a6 13. Nf3 h5 {0-1 (50) Deak,Z (2205)-Csomos,R (2213) Hungary 2003}) 13. Qb3 {[%emt 0:01:30]} c4 {[%emt 0:01:55]} 14. Qxb6 {[%emt 0:00:17]} axb6 {[%emt 0:04:56]} 15. e4 {[%emt 0:01:31]} Bg6 {[%emt 0:01:52]} 16. exd5 {[%emt 0:07:05]} exd5 {[%emt 0:02:02]} 17. Rfe1 {[%emt 0:00:34]} Rfe8 {[%emt 0:02:05]} 18. a3 {[%emt 0:03:33]} b5 {[%emt 0:14:13]} 19. Nf1 {[%emt 0:08:07]} Bg5 {[%emt 0:17:17]} 20. f4 {[%emt 0:05:19]} Bf6 {[%emt 0:03:10]} 21. Bf3 {[%emt 0:01:09]} Nb6 $14 {[%emt 0:00:51]} 22. Ne3 {[%emt 0:07:59]} Be4 {[%emt 0:14:21]} 23. Kf2 {[%emt 0:07:24]} Bxf3 {[%emt 0:05:30]} 24. Kxf3 {[%emt 0:00:22]} g6 {[%emt 0:00:36]} 25. Re2 {[%emt 0:01:28]} Re6 {[%emt 0:02:47]} 26. Rae1 {[%emt 0:03:02]} Rae8 {[%emt 0:01:05]} 27. Bg1 {[%emt 0:03:49]} Kg7 {[%emt 0:02:11]} 28. Bf2 {[%emt 0:00:16]} Bd8 {[%emt 0:01:25]} 29. g4 {[%emt 0:03:45]} Bc7 {[%emt 0:01:46]} 30. Bg3 {[%emt 0:00:30]} Re4 {[%emt 0:03:51]} 31. h4 {[%emt 0:07:45]} R4e7 {[%emt 0:05:21]} 32. Nf5+ {[%emt 0:01:59]} gxf5 {[%emt 0:00:33]} 33. Rxe7 {[%emt 0:00:05]} fxg4+ {[%emt 0:00:11]} 34. Kxg4 {[%emt 0:00:11]} Rc8 {[%emt 0:00:32]} 35. h5 {[%emt 0:02:34]} Na4 {[%emt 0:01:32]} 36. R1e2 {[%emt 0:00:11]} Bd6 {[%emt 0:03:16]} 37. Rxb7 {[%emt 0:00:49]} Ra8 {[%emt 0:00:20]} 38. Be1 {[%emt 0:01:42]} Ra5 {[%emt 0:00:36]} 39. Kf5 {[%emt 0:00:24]} Kf8 {[%emt 0:01:07]} 40. Rd7 {[%emt 0:01:21]} Ra6 {[%emt 0:00:47]} 41. Bh4 {[%emt 0:00:26]} Rb6 {[%emt 0:01:48]} 42. Rd8+ {[%emt 0:00:19]} Kg7 {[%emt 0:00:08]} 43. Bf6+ {[%emt 0:00:06]} 1-0